bitfinex/quotes_BTCUSD_20240617
["timestamp","ask_amount","ask_price","bid_price","bid_amount"]
[1718654219617,2.93700126,66660.0,66659.0,0.100935]
[1718654220025,2.93700126,66660.0,66659.0,0.10070509]
[1718654220534,4.24257193,66660.0,66659.0,0.10070509]
[1718654220727,0.29056867,66654.0,66653.0,0.08938491]
[1718654220932,2.77902831,66654.0,66653.0,0.07838491]
[1718654221154,2.76982051,66654.0,66653.0,0.08299831]
[1718654221359,7.81982051,66654.0,66653.0,0.03499831]
[1718654221578,2.9976359,66654.0,66653.0,0.03499831]
[1718654221726,8.03709523,66654.0,66653.0,0.03038491]
[1718654222147,8.17623076,66654.0,66653.0,0.03038491]
[1718654222351,8.51939133,66654.0,66653.0,0.03038491]
[1718654222587,4.40881133,66654.0,66653.0,0.03038491]
[1718654222763,3.84756533,66654.0,66653.0,0.03038491]
[1718654222931,4.06166533,66654.0,66653.0,0.03499831]
[1718654223295,2.96762791,66654.0,66653.0,0.03499831]
[1718654223447,3.03986952,66654.0,66653.0,0.03499831]
[1718654223652,2.83394223,66654.0,66653.0,0.03499831]
[1718654223819,2.63412684,66654.0,66653.0,0.03499831]
[1718654224030,2.75381252,66654.0,66653.0,0.03499831]
[1718654224242,2.84794223,66654.0,66653.0,0.03499831]
[1718654224955,1.66152823,66654.0,66653.0,0.03499831]
[1718654225167,1.25777566,66654.0,66653.0,0.03499831]
[1718654225374,1.22977566,66654.0,66653.0,0.03499831]
[1718654225592,1.52983266,66654.0,66653.0,0.03499831]
[1718654225801,1.332975,66651.0,66650.0,10.0140928]
[1718654226061,2.38421933,66651.0,66650.0,9.97010182]
[1718654226265,2.89027951,66651.0,66650.0,9.97010182]
[1718654226484,3.1410949,66651.0,66650.0,9.97010182]
[1718654226703,3.13055423,66651.0,66650.0,9.97010182]
[1718654226921,8.18055423,66651.0,66650.0,9.97010182]
[1718654227132,8.26702562,66651.0,66650.0,8.28998582]
[1718654227547,8.26702562,66651.0,66650.0,8.21976582]
[1718654227940,8.18055423,66651.0,66650.0,8.21976582]
[1718654228146,8.19455423,66651.0,66650.0,8.21976582]
[1718654228351,8.20855423,66651.0,66650.0,8.21976582]
[1718654228598,8.35249309,66651.0,66650.0,8.21976582]
[1718654228801,8.2190949,66651.0,66650.0,8.21976582]
[1718654229655,8.5191649,66651.0,66650.0,8.13925382]
[1718654229873,8.5191649,66651.0,66650.0,8.09725382]
[1718654230078,9.3491649,66651.0,66650.0,8.07725382]
[1718654230288,9.3491649,66651.0,66650.0,8.0565305]
[1718654230289,8.5191649,66651.0,66650.0,8.0565305]
[1718654230498,8.5191649,66651.0,66650.0,8.01972235]
[1718654231328,8.5191649,66651.0,66650.0,7.97672235]
[1718654231329,9.49246635,66651.0,66650.0,7.97672235]
[1718654231537,8.65246635,66651.0,66650.0,7.97672235]
[1718654231947,4.46246635,66651.0,66650.0,7.96690053]
[1718654232159,0.47428341,66651.0,66650.0,8.54530053]
[1718654232448,0.27818252,66651.0,66650.0,8.54530053]
[1718654232642,0.21441419,66651.0,66650.0,8.54530053]
[1718654233410,0.36444919,66651.0,66650.0,8.54979173]
[1718654233639,0.76451919,66651.0,66650.0,8.54979173]
[1718654234102,0.75051919,66651.0,66650.0,8.54979173]
[1718654234564,0.73651919,66651.0,66650.0,8.54979173]
[1718654235009,0.76451919,66651.0,66650.0,8.54979173]
[1718654235921,0.76451919,66651.0,66650.0,0.5828912]
[1718654236168,2.64885556,66651.0,66650.0,0.0044912]
[1718654236445,2.77835718,66651.0,66650.0,0.0044912]
[1718654236659,2.77835718,66651.0,66649.0,0.009405]
[1718654236660,1.050262,66650.0,66649.0,0.009405]
[1718654236861,1.53241521,66650.0,66649.0,0.009405]
[1718654237087,3.58537121,66650.0,66649.0,0.009405]
[1718654237302,3.83110813,66650.0,66649.0,0.009405]
[1718654237531,4.04520813,66650.0,66649.0,0.009405]
[1718654238150,4.15631928,66650.0,66649.0,0.009405]
[1718654238388,4.17031928,66650.0,66649.0,0.009405]
[1718654238980,4.18431928,66650.0,66649.0,0.009405]
[1718654239132,4.48439428,66650.0,66649.0,0.009405]
[1718654240338,4.18431928,66650.0,66649.0,0.009405]
[1718654240577,2.06344928,66650.0,66649.0,0.009405]
[1718654240785,0.25143415,66650.0,66649.0,0.570405]
[1718654241123,0.70154615,66650.0,66649.0,0.57488814]
[1718654241542,1.00162115,66650.0,66649.0,0.68434747]
[1718654241809,0.70154615,66650.0,66649.0,0.68434747]
[1718654242030,0.40147115,66650.0,66649.0,0.68434747]
[1718654242243,0.39145891,66650.0,66649.0,0.68434747]
[1718654242373,0.24142191,66650.0,66649.0,0.68434747]
[1718654242572,0.24142191,66650.0,66649.0,0.67986433]
[1718654242781,0.69153391,66650.0,66649.0,0.68434747]
[1718654243609,0.64227415,66650.0,66649.0,0.68434747]
[1718654243823,0.40699967,66650.0,66649.0,0.68434747]
[1718654244039,0.25696267,66650.0,66649.0,0.68434747]
[1718654245360,0.24296267,66650.0,66649.0,0.68434747]
[1718654245982,0.24296267,66650.0,66649.0,0.57488814]
[1718654245983,0.39299967,66650.0,66649.0,0.57488814]
[1718654246199,0.99314967,66650.0,66649.0,0.57488814]
[1718654246429,1.42762955,66650.0,66649.0,0.01388814]
[1718654246638,1.77218822,66650.0,66649.0,0.01388814]
[1718654246840,1.74170455,66650.0,66649.0,0.009405]
[1718654247501,1.76518025,66650.0,66649.0,0.009405]
[1718654247709,1.75118025,66650.0,66649.0,0.009405]
[1718654248122,1.76518025,66650.0,66649.0,0.009405]
[1718654248585,0.28,66648.0,66647.0,0.009405]
[1718654248810,1.69683237,66648.0,66647.0,0.009405]
[1718654249031,1.88584052,66648.0,66647.0,0.009405]
[1718654249437,6.74760348,66648.0,66647.0,0.009405]
[1718654249658,6.00545148,66648.0,66647.0,0.009405]
[1718654249871,5.26545148,66648.0,66647.0,0.009405]
[1718654250312,5.27945148,66648.0,66647.0,1.009405]
[1718654250517,6.58226436,66648.0,66647.0,1.009405]
[1718654250718,5.44272103,66648.0,66647.0,1.009405]
[1718654250942,5.54346026,66648.0,66647.0,1.009405]
[1718654251351,5.43218036,66648.0,66647.0,1.009405]
[1718654251625,5.44618036,66648.0,66647.0,1.009405]
[1718654252948,5.46918036,66648.0,66647.0,1.009405]
[1718654254173,6.28918036,66648.0,66647.0,1.009405]
[1718654254596,6.26618036,66648.0,66647.0,1.009405]
[1718654254848,5.14609636,66648.0,66647.0,1.009405]
[1718654255466,5.44618036,66648.0,66647.0,1.009405]
[1718654256105,6.18618036,66648.0,66647.0,1.009405]
[1718654256317,5.14609636,66648.0,66647.0,1.009405]
[1718654257429,4.98550753,66648.0,66647.0,1.009405]
[1718654257639,5.85286173,66648.0,66647.0,1.009405]
[1718654257853,6.24294573,66648.0,66647.0,1.009405]
[1718654258253,5.14290257,66648.0,66647.0,1.009405]
[1718654258462,5.07832591,66648.0,66647.0,1.009405]
[1718654259325,5.04929359,66648.0,66647.0,1.009405]
[1718654260112,5.04959504,66648.0,66647.0,1.009405]
[1718654261090,5.18342938,66648.0,66647.0,1.009405]
[1718654261775,5.04959504,66648.0,66647.0,1.009405]
[1718654263601,3.59336116,66648.0,66647.0,1.009405]
[1718654263812,3.59336116,66648.0,66647.0,1.69826433]
[1718654263813,0.54076716,66648.0,66647.0,1.69826433]
[1718654263998,0.32372625,66648.0,66647.0,1.70275128]
[1718654264209,0.66223021,66648.0,66647.0,1.59329195]
[1718654264415,1.28587273,66648.0,66647.0,1.59329195]
[1718654264617,1.60539273,66648.0,66647.0,1.59329195]
[1718654265243,1.73932389,66648.0,66647.0,1.59329195]
[1718654266261,1.11971989,66648.0,66647.0,1.70275128]
[1718654266433,1.11971989,66648.0,66647.0,1.68275128]
[1718654266675,1.11971989,66648.0,66647.0,1.59329195]
[1718654266919,1.59360989,66648.0,66647.0,1.59329195]
[1718654269561,1.45967873,66648.0,66647.0,1.59329195]
[1718654269787,1.74633877,66648.0,66647.0,1.01389195]
[1718654270023,2.04642277,66648.0,66647.0,1.01389195]
[1718654270520,1.91249161,66648.0,66647.0,1.01389195]
[1718654272037,1.85159533,66648.0,66647.0,1.01389195]
[1718654272281,2.11339271,66648.0,66647.0,1.01389195]
[1718654275849,1.81330871,66648.0,66647.0,1.01389195]
[1718654278771,1.06041183,66648.0,66647.0,1.10335128]
[1718654278976,1.32072646,66648.0,66647.0,1.36565128]
[1718654279308,1.33734383,66648.0,66647.0,1.27619195]
[1718654279508,1.63742783,66648.0,66647.0,1.27619195]
[1718654280391,1.85152783,66648.0,66647.0,1.27619195]
[1718654281314,2.00425671,66648.0,66647.0,1.01389195]
[1718654281591,2.15498161,66648.0,66647.0,1.01389195]
[1718654281743,2.24919297,66648.0,66647.0,1.01389195]
[1718654281993,2.24919297,66648.0,66647.0,1.57059195]
[1718654281994,1.73371407,66648.0,66647.0,1.57059195]
[1718654282196,1.18668983,66648.0,66647.0,1.66005128]
[1718654282432,1.18668983,66648.0,66647.0,1.66315828]
[1718654282433,1.32073797,66648.0,66647.0,1.66315828]
[1718654282649,1.48677383,66648.0,66647.0,1.66315828]
[1718654283053,1.48677383,66648.0,66647.0,1.57369895]
[1718654283257,1.12489245,66648.0,66647.0,1.66315828]
[1718654283426,1.18572179,66648.0,66647.0,1.66315828]
[1718654283625,1.48580579,66648.0,66647.0,1.57369895]
[1718654284228,0.88563779,66648.0,66647.0,1.68315828]
[1718654284429,0.36955418,66648.0,66647.0,1.68315828]
[1718654284665,0.68563779,66648.0,66647.0,1.68315828]
[1718654284833,0.68563779,66648.0,66647.0,1.66315828]
[1718654285031,0.98572179,66648.0,66647.0,1.66315828]
[1718654285356,1.28580579,66648.0,66647.0,1.57369895]
[1718654286129,0.98572179,66648.0,66647.0,1.66315828]
[1718654286378,0.98572179,66648.0,66647.0,1.01699895]
[1718654286611,1.28580579,66648.0,66647.0,1.01699895]
[1718654286823,1.28580579,66648.0,66647.0,1.10645828]
[1718654287467,1.28580579,66648.0,66647.0,1.12645828]
[1718654288073,0.98572179,66648.0,66647.0,1.12645828]
[1718654288637,1.28580579,66648.0,66647.0,1.10645828]
[1718654288754,1.28080579,66648.0,66647.0,1.10645828]
[1718654288967,1.28080579,66648.0,66647.0,1.01699895]
[1718654289377,0.98072179,66648.0,66647.0,1.10645828]
[1718654289627,0.98072179,66648.0,66647.0,1.12645828]
[1718654289829,1.28080579,66648.0,66647.0,1.01699895]
[1718654290265,0.38055379,66648.0,66647.0,1.12645828]
[1718654290476,0.38055379,66648.0,66647.0,1.69015828]
[1718654290477,0.51466341,66648.0,66647.0,1.69015828]
[1718654290641,0.68063779,66648.0,66647.0,1.69015828]
[1718654291045,0.98072179,66648.0,66647.0,1.69015828]
[1718654291677,0.68063779,66648.0,66647.0,1.69015828]
[1718654292073,0.98072179,66648.0,66647.0,1.69015828]
[1718654295111,1.00057002,66648.0,66647.0,1.69015828]
[1718654298042,0.15536002,66648.0,66647.0,1.90020228]
[1718654298266,0.15536002,66648.0,66647.0,2.20029028]
[1718654298468,0.1318855,66648.0,66647.0,1.75015828]
[1718654299065,0.1178855,66648.0,66647.0,1.75015828]
[1718654299347,0.11952237,66648.0,66647.0,1.75015828]
[1718654299468,0.13352237,66648.0,66647.0,1.75015828]
[1718654299671,0.13352237,66648.0,66647.0,1.90020228]
[1718654299879,0.11952237,66648.0,66647.0,1.8530814]
[1718654300088,0.11003015,66648.0,66647.0,1.8530814]
[1718654300307,0.06534004,66648.0,66647.0,2.45594228]
[1718654300510,0.07934004,66648.0,66647.0,2.45594228]
[1718654300708,0.07934004,66648.0,66647.0,2.35301916]
[1718654300918,0.06534004,66648.0,66647.0,2.35301916]
[1718654301121,0.06534004,66648.0,66647.0,2.05293116]
[1718654301367,0.07934004,66648.0,66647.0,2.05293116]
[1718654301828,0.06534004,66648.0,66647.0,2.05293116]
[1718654302044,0.07234004,66648.0,66647.0,2.05293116]
[1718654302452,0.07262275,66648.0,66647.0,2.05293116]
[1718654302653,0.07262275,66648.0,66647.0,2.35301916]
[1718654303563,0.05859123,66648.0,66647.0,2.50573172]
[1718654303759,0.07059123,66648.0,66647.0,3.10590772]
[1718654303965,0.07059123,66648.0,66647.0,2.95319516]
[1718654303966,0.019,66648.0,66647.0,2.95319516]
[1718654304165,0.019,66648.0,66647.0,2.65310716]
[1718654304366,0.07058597,66648.0,66647.0,2.65310716]
[1718654305211,0.07114025,66648.0,66647.0,2.65310716]
[1718654306042,0.07114025,66648.0,66647.0,2.35301916]
[1718654306273,0.07114025,66648.0,66647.0,2.04293116]
[1718654306435,0.07114025,66648.0,66647.0,1.90288716]
[1718654306639,0.06614025,66648.0,66647.0,1.90288716]
[1718654306850,0.06595945,66648.0,66647.0,1.90288716]
[1718654307073,0.06595945,66648.0,66647.0,2.14101668]
[1718654307459,0.06595945,66648.0,66647.0,2.44110468]
[1718654307633,0.06595945,66648.0,66647.0,2.14101668]
[1718654308402,0.06595945,66648.0,66647.0,2.44110468]
[1718654308826,0.014,66648.0,66647.0,3.00119268]
[1718654309065,0.00086,66651.0,66650.0,1.74664633]
[1718654309233,0.00086,66651.0,66650.0,2.25016277]
[1718654309388,0.00086,66651.0,66650.0,2.35636628]
[1718654311491,0.00086,66651.0,66650.0,2.68244128]
[1718654311492,0.00186,66651.0,66650.0,2.68244128]
[1718654311900,0.00186,66651.0,66650.0,2.38236628]
[1718654312072,0.00186,66651.0,66650.0,2.39536628]
[1718654312073,0.00286,66651.0,66650.0,2.39536628]
[1718654313405,0.00085,66672.0,66671.0,0.10945933]
[1718654313605,0.05150859,66672.0,66671.0,0.73565933]
[1718654313808,0.00085,66672.0,66671.0,0.81342877]
[1718654314216,0.00085,66672.0,66671.0,1.26339877]
[1718654314439,0.00085,66672.0,66671.0,0.96341877]
[1718654314804,0.00085,66672.0,66671.0,0.81342877]
[1718654315028,0.02685,66672.0,66671.0,0.81542877]
[1718654315615,0.02685,66672.0,66671.0,0.80542877]
[1718654315812,0.02685,66672.0,66671.0,0.80442877]
[1718654316015,0.01285,66672.0,66671.0,1.71710765]
[1718654316220,0.02185,66672.0,66671.0,1.71810765]
[1718654316422,0.02185,66672.0,66671.0,0.96815765]
[1718654316620,0.00985,66672.0,66671.0,1.04358172]
[1718654316977,0.00985,66672.0,66671.0,0.89359172]
[1718654317209,0.02185,66672.0,66671.0,0.89459172]
[1718654317787,0.02185,66672.0,66671.0,0.73186284]
[1718654322599,0.018744,66672.0,66671.0,0.73186284]
[1718654323182,0.468708,66672.0,66671.0,0.73186284]
[1718654323537,0.018744,66672.0,66671.0,0.002]
[1718654323711,0.768684,66672.0,66671.0,0.002]
[1718654323911,0.82184181,66672.0,66671.0,0.09563553]
[1718654324142,0.82184181,66672.0,66671.0,0.11145933]
[1718654324581,0.05315781,66672.0,66671.0,0.10945933]
[1718654324805,0.149982,66675.0,66674.0,0.08945933]
[1718654325020,0.30390197,66675.0,66674.0,0.10945933]
[1718654325234,0.60386397,66675.0,66674.0,0.10945933]
[1718654325462,0.90382597,66675.0,66674.0,0.10945933]
[1718654325661,0.90382597,66675.0,66674.0,0.08945933]
[1718654326295,0.60386397,66675.0,66674.0,0.08945933]
[1718654326818,0.60386397,66675.0,66674.0,0.10945933]
[1718654327228,0.90382597,66675.0,66674.0,0.10945933]
[1718654327515,0.15391997,66675.0,66674.0,0.17540526]
[1718654327921,0.08191997,66675.0,66674.0,0.43658146]
[1718654328146,0.08191997,66675.0,66674.0,0.42658146]
[1718654328814,0.028,66675.0,66674.0,0.42658146]
[1718654329346,0.08230753,66675.0,66674.0,0.42658146]
[1718654329551,0.028,66675.0,66674.0,0.42658146]
[1718654330146,0.028,66675.0,66674.0,0.89801034]
[1718654330552,0.028,66675.0,66674.0,0.88801034]
[1718654330773,0.028,66675.0,66674.0,1.49794434]
[1718654330975,0.014,66675.0,66674.0,1.64792734]
[1718654331177,0.028,66675.0,66674.0,1.34796034]
[1718654331781,0.00085,66678.0,66677.0,0.16945933]
[1718654331978,0.00085,66678.0,66677.0,0.32631906]
[1718654332212,0.00085,66678.0,66677.0,1.82629134]
[1718654332442,0.00085,66690.0,66689.0,1.18060733]
[1718654332630,0.00085,66690.0,66689.0,1.54743621]
[1718654332968,0.00085,66690.0,66689.0,2.03253323]
[1718654333177,0.00085,66705.0,66697.0,0.71365933]
[1718654333178,0.149922,66702.0,66697.0,0.71365933]
[1718654333383,0.16884619,66702.0,66697.0,0.93875414]
[1718654333529,0.01892619,66702.0,66697.0,0.94283374]
[1718654333770,0.00085,66705.0,66697.0,0.79010486]
[1718654334113,0.00085,66705.0,66697.0,0.23590486]
[1718654334114,0.299839,66703.0,66697.0,0.23590486]
[1718654334331,0.00085,66705.0,66697.0,0.16353893]
[1718654334558,0.149919,66703.0,66697.0,0.16353893]
[1718654334766,0.1,66702.0,66697.0,0.16353893]
[1718654335005,0.00685,66698.0,66697.0,0.16353893]
[1718654335442,0.156779,66698.0,66697.0,0.14353893]
[1718654335641,0.10685,66698.0,66697.0,0.16353893]
[1718654336055,0.11185,66698.0,66697.0,0.16353893]
[1718654336264,0.10585,66698.0,66697.0,0.16353893]
[1718654336679,0.01485,66698.0,66697.0,0.16353893]
[1718654336893,0.00985,66698.0,66697.0,0.16353893]
[1718654337103,0.00085,66698.0,66697.0,0.16353893]
[1718654337323,0.00885,66698.0,66697.0,0.16353893]
[1718654337991,0.00085,66698.0,66697.0,0.16353893]
[1718654338426,0.00885,66698.0,66697.0,0.16453893]
[1718654338863,0.00085,66698.0,66697.0,0.17999282]
[1718654339087,0.00585,66698.0,66697.0,0.16353893]
[1718654339591,0.00985,66698.0,66697.0,0.16353893]
[1718654339818,0.01585,66698.0,66697.0,0.16453893]
[1718654340045,0.00685,66698.0,66697.0,0.16453893]
[1718654340291,0.01685,66698.0,66697.0,0.16453893]
[1718654340521,3.92219465,66698.0,66697.0,0.0050796]
[1718654340747,3.92219465,66698.0,66678.0,0.3329]
[1718654340748,0.449916,66679.0,66678.0,0.05]
[1718654340996,0.3037,66682.0,66678.0,0.15945933]
[1718654341209,0.50363882,66681.0,66680.0,0.08945933]
[1718654341628,0.449916,66679.0,66678.0,0.05]
[1718654341839,0.549916,66679.0,66678.0,0.06]
[1718654342055,0.549916,66679.0,66678.0,0.14945933]
[1718654342263,0.549916,66679.0,66678.0,0.15945933]
[1718654342472,0.249972,66679.0,66678.0,0.15945933]
[1718654342746,0.1,66679.0,66678.0,0.15945933]
[1718654342958,0.1,66681.0,66680.0,0.08945933]
[1718654343180,0.15441656,66681.0,66680.0,0.10945933]
[1718654343389,0.45435156,66681.0,66678.0,0.05]
[1718654343572,0.475916,66679.0,66678.0,0.051]
[1718654343777,0.93019028,66679.0,66678.0,0.051]
[1718654343911,0.93019028,66679.0,66677.0,0.05]
[1718654343912,0.449923,66678.0,66677.0,0.05]
[1718654344304,0.449923,66678.0,66670.0,0.13945933]
[1718654344305,0.44997,66671.0,66670.0,0.13945933]
[1718654344503,0.44997,66671.0,66670.0,0.05]
[1718654344504,0.80428028,66671.0,66670.0,0.05]
[1718654344718,0.90428028,66671.0,66670.0,0.05]
[1718654345124,1.26644428,66671.0,66663.0,0.13945933]
[1718654345275,0.450031,66662.0,66661.0,0.08945933]
[1718654345491,0.25001,66662.0,66661.0,0.05]
[1718654345741,0.6061131,66662.0,66661.0,0.05]
[1718654345861,0.9061341,66662.0,66661.0,0.05]
[1718654346277,0.3978821,66662.0,66657.0,0.05]
[1718654346507,0.750097,66658.0,66657.0,0.05]
[1718654346718,0.9061791,66658.0,66657.0,0.05]
[1718654346956,0.9061791,66658.0,66646.0,0.2433]
[1718654346957,0.450078,66655.0,66654.0,0.05]
[1718654347159,0.450112,66650.0,66649.0,0.05]
[1718654347359,1.03021,66648.0,66641.0,0.009405]
[1718654347567,2.29910498,66648.0,66641.0,0.009405]
[1718654347840,7.2633577,66648.0,66641.0,0.009405]
[1718654347994,7.24270023,66648.0,66641.0,0.009405]
[1718654348221,7.21922037,66648.0,66641.0,0.009405]
[1718654349190,7.12906773,66648.0,66641.0,0.009405]
[1718654349396,6.56640452,66648.0,66641.0,0.09886433]
[1718654349615,1.45064864,66648.0,66641.0,0.009405]
[1718654349911,2.11756152,66648.0,66641.0,0.009405]
[1718654350108,2.17810219,66648.0,66641.0,0.009405]
[1718654350324,2.56790321,66648.0,66641.0,0.009405]
[1718654350532,2.56790321,66648.0,66647.0,0.98740443]
[1718654350533,8.0292078,66648.0,66647.0,0.98740443]
[1718654350737,8.16159366,66648.0,66647.0,0.98740443]
[1718654351301,7.36617945,66648.0,66647.0,0.68902014]
[1718654351504,5.10740824,66648.0,66647.0,0.68902014]
[1718654351699,5.12140824,66648.0,66647.0,0.68902014]
[1718654352022,5.11086757,66648.0,66647.0,0.68902014]
[1718654352220,5.41095157,66648.0,66647.0,0.68902014]
[1718654352519,6.07597624,66648.0,66647.0,0.68902014]
[1718654352972,5.92589224,66648.0,66647.0,0.68902014]
[1718654353224,5.77589224,66648.0,66647.0,0.68902014]
[1718654353431,6.47589224,66648.0,66647.0,0.68902014]
[1718654353646,6.77597624,66648.0,66647.0,0.67543858]
[1718654354913,5.55125157,66648.0,66647.0,0.67543858]
[1718654355112,5.26713457,66648.0,66647.0,0.67543858]
[1718654355315,5.48123457,66648.0,66647.0,0.67543858]
[1718654355763,5.64123457,66648.0,66647.0,0.67543858]
[1718654355941,6.18123457,66648.0,66647.0,0.67543858]
[1718654356121,5.48123457,66648.0,66647.0,0.67543858]
[1718654356981,6.28123457,66648.0,66647.0,0.67543858]
[1718654357387,6.29177524,66648.0,66647.0,0.67543858]
[1718654357717,6.29177524,66648.0,66647.0,0.66175871]
[1718654357955,6.29177524,66648.0,66647.0,0.66025234]
[1718654358173,6.29435164,66648.0,66647.0,0.66025234]
[1718654358395,6.59443564,66648.0,66647.0,0.66025234]
[1718654358624,6.29435164,66648.0,66647.0,0.66025234]
[1718654358841,6.29435164,66648.0,66630.0,0.1]
[1718654358842,0.28,66631.0,66630.0,0.1]
[1718654359101,0.28,66631.0,66622.0,0.009405]
[1718654359102,1.05064,66626.0,66625.0,0.11049992]
[1718654359301,0.750547,66618.0,66617.0,0.009405]
[1718654359527,0.90327588,66618.0,66617.0,0.009405]
[1718654359877,1.30349488,66618.0,66617.0,0.009405]
[1718654360175,0.1,66618.0,66617.0,0.11886433]
[1718654360358,0.550328,66618.0,66617.0,0.009405]
[1718654360565,0.850547,66618.0,66617.0,0.009405]
[1718654360776,1.30349488,66618.0,66617.0,0.009405]
[1718654360996,1.60319292,66618.0,66617.0,0.009405]
[1718654361195,0.864547,66618.0,66617.0,0.009405]
[1718654361399,1.164766,66618.0,66617.0,0.009405]
[1718654361618,1.31749488,66618.0,66617.0,0.009405]
[1718654361962,0.864547,66618.0,66617.0,0.009405]
[1718654362193,1.57535,66618.0,66617.0,0.009405]
[1718654362487,0.714707,66618.0,66617.0,0.11886433]
[1718654362692,1.035927,66618.0,66617.0,0.11886433]
[1718654363751,0.128,66618.0,66617.0,0.009405]
[1718654363917,0.464328,66618.0,66617.0,0.12272777]
[1718654364129,0.771439,66618.0,66617.0,0.12272777]
[1718654364355,0.878547,66618.0,66617.0,0.12272777]
[1718654364563,0.128,66618.0,66617.0,0.12272777]
[1718654364838,0.128,66618.0,66617.0,0.17272777]
[1718654364995,0.128,66618.0,66617.0,0.18272777]
[1718654365191,0.014,66618.0,66617.0,0.17272777]
[1718654365460,0.250098,66623.0,66618.0,0.05]
[1718654365624,0.1,66623.0,66622.0,0.10945933]
[1718654366049,0.550248,66630.0,66629.0,0.10945933]
[1718654366251,0.1,66630.0,66629.0,0.10945933]
[1718654366569,0.08,66631.0,66630.0,0.10945933]
[1718654366748,0.2918,66641.0,66627.0,0.3144]
[1718654366749,0.08,66639.0,66637.0,0.08945933]
[1718654367098,0.530186,66639.0,66638.0,0.10945933]
[1718654367302,0.530186,66639.0,66638.0,0.11329884]
[1718654367618,0.01820698,66641.0,66640.0,0.10945933]
[1718654367806,0.2,66642.0,66641.0,0.10945933]
[1718654368221,0.19522807,66653.0,66645.0,0.10945933]
[1718654368363,0.2,66657.0,66645.0,0.10945933]
[1718654368364,0.2,66657.0,66656.0,0.10945933]
[1718654368567,0.650064,66657.0,66656.0,0.10945933]
[1718654368751,0.2,66657.0,66656.0,0.11325549]
[1718654368949,0.2,66657.0,66654.0,0.08945933]
[1718654369179,0.650064,66657.0,66656.0,0.11325549]
[1718654369376,0.650064,66657.0,66656.0,0.10945933]
[1718654369576,0.2,66657.0,66656.0,0.11325549]
[1718654369776,0.650064,66657.0,66656.0,0.11325549]
[1718654370186,0.662064,66657.0,66656.0,0.11325549]
[1718654370381,0.962107,66657.0,66656.0,0.00379616]
[1718654370583,0.650064,66657.0,66656.0,0.09325549]
[1718654370845,0.450074,66656.0,66655.0,0.10945933]
[1718654370984,0.15272888,66656.0,66643.0,0.41995933]
[1718654371305,0.300111,66642.0,66641.0,0.08945933]
[1718654371469,0.309,66653.0,66641.0,0.08945933]
[1718654371470,0.1,66655.0,66654.0,0.10945933]
[1718654371827,0.01485,66657.0,66648.0,0.08945933]
[1718654371828,0.450118,66649.0,66648.0,0.08945933]
[1718654372050,0.28,66651.0,66641.0,0.41995933]
[1718654372162,0.450166,66642.0,66641.0,0.10945933]
[1718654372373,0.250039,66649.0,66648.0,0.08945933]
[1718654372572,0.1,66649.0,66648.0,0.10945933]
[1718654373249,0.314048,66656.0,66655.0,0.10945933]
[1718654373467,0.1725386,66656.0,66655.0,0.08945933]
[1718654373711,0.7473186,66656.0,66654.0,0.08945933]
[1718654373937,0.00085,66657.0,66655.0,0.23539005]
[1718654374119,0.00085,66657.0,66656.0,0.42845933]
[1718654374558,0.00085,66657.0,66656.0,1.18397277]
[1718654374733,0.060061,66667.0,66656.0,1.18397277]
[1718654374734,0.060061,66667.0,66666.0,0.61946333]
[1718654374938,0.060061,66667.0,66666.0,1.56429221]
[1718654375154,0.060061,66667.0,66666.0,1.86429521]
[1718654375367,0.149957,66686.0,66685.0,0.10945933]
[1718654375582,0.060044,66687.0,66686.0,0.10945933]
[1718654375994,0.229952,66688.0,66687.0,0.10945933]
[1718654376195,0.08,66688.0,66687.0,0.10945933]
[1718654376959,0.060039,66693.0,66692.0,0.10945933]
[1718654377126,0.08,66695.0,66694.0,0.10945933]
[1718654378187,0.00085,66698.0,66697.0,0.10945933]
[1718654379005,0.00085,66698.0,66697.0,0.11308616]
[1718654379431,0.150779,66698.0,66697.0,0.11308616]
[1718654379688,0.550638,66698.0,66697.0,0.11308616]
[1718654379915,0.550638,66698.0,66697.0,0.00362683]
[1718654380151,0.449802,66696.0,66695.0,0.08945933]
[1718654380383,0.84967,66696.0,66695.0,0.10945933]
[1718654380611,0.549802,66696.0,66695.0,0.10945933]
[1718654380940,0.1,66696.0,66695.0,0.10945933]
[1718654381132,0.249934,66696.0,66695.0,0.10945933]
[1718654381362,0.014,66696.0,66695.0,0.1130598]
[1718654381566,0.014,66696.0,66695.0,1.19616733]
[1718654381778,0.014,66696.0,66695.0,0.7399126]
[1718654382706,0.014,66696.0,66695.0,0.6899126]
[1718654383023,0.027,66696.0,66695.0,0.7399126]
[1718654383273,0.027,66696.0,66695.0,0.7499126]
[1718654383477,0.027,66696.0,66695.0,1.72731274]
[1718654383685,0.027,66696.0,66695.0,1.42744074]
[1718654383896,0.027,66696.0,66695.0,0.90264148]
[1718654384359,0.013,66696.0,66695.0,0.90264148]
[1718654384579,0.00085,66698.0,66697.0,0.16945933]
[1718654384757,0.00085,66698.0,66697.0,0.15945933]
[1718654384963,0.00085,66698.0,66697.0,0.16293476]
[1718654387216,0.00085,66698.0,66697.0,0.85044112]
[1718654387217,0.01885,66698.0,66697.0,0.85044112]
[1718654387450,0.01185,66698.0,66697.0,0.85044112]
[1718654387656,0.00085,66698.0,66697.0,0.85044112]
[1718654387822,0.00485,66698.0,66697.0,0.85044112]
[1718654388061,0.00985,66698.0,66697.0,0.55057812]
[1718654388236,0.00985,66698.0,66697.0,0.85044112]
[1718654388437,0.00085,66698.0,66697.0,1.15030412]
[1718654388646,0.00085,66698.0,66697.0,1.55216712]
[1718654388847,0.00086,66712.0,66704.0,1.02103933]
[1718654389044,0.00086,66712.0,66704.0,1.71252974]
[1718654389271,0.00086,66712.0,66704.0,2.02236174]
[1718654389472,0.00086,66712.0,66704.0,1.90290241]
[1718654389813,0.00086,66712.0,66704.0,2.01236174]
[1718654390029,0.00086,66712.0,66704.0,2.12436174]
[1718654390438,0.00086,66712.0,66704.0,2.12536174]
[1718654390663,0.00086,66712.0,66711.0,0.91895933]
[1718654390834,0.00086,66712.0,66711.0,1.32986504]
[1718654391030,0.00086,66712.0,66711.0,1.33325247]
[1718654391677,0.00086,66712.0,66711.0,1.65335247]
[1718654391901,0.00855,66715.0,66714.0,1.03462633]
[1718654392111,0.00855,66715.0,66714.0,1.18735521]
[1718654392307,0.00855,66715.0,66714.0,0.9999452]
[1718654392753,0.00855,66715.0,66714.0,0.7001582]
[1718654393160,0.00855,66715.0,66714.0,0.5502652]
[1718654393341,0.00855,66715.0,66714.0,0.9999452]